Workbook

Sheet Sheet1
B1: Autor - click aici: | C1: Lilian Iordache
B2: Ipoteze:
B3: Cu privire la Cont Junior Centenar:
C4: Depuneri minimale anuale | E4: 1200
C5: Rata dobanzii cont Junior Centenar - fixa (nu se poate schimba) calculata si platita la scadenta: | E5: 0.03
C6: Dobanda simpla sau compusa ? (Calculata si platita doar la scadenta in 15 zile de la scadenta): | E6: Simpla | F6: Selectati modul de calcul al dobanzii. Pana la noi clarificari oficiale si in baza OUG 104/2018 scenariul principal este ca dobanda se calculeaza in modul simplu.
C7: Prima de stat anuala platita la scadenta (nr. de ani x prima - cu exceptia ultimului an): | E7: 600 | F7: Totusi pentru a vedea care sunt rezultatele si in cazul in care dobanda se calculeaza in modul "compus" (putin probabil) selectati aceasta optiune.
C8: Orizont economisire - Ani | E8: 18
B9: Cu privire la dobanda de piata si inflatie:
C10: Nr. perioade de compunere dobanda pe an | E10: 1
C11: Rata nominala a dobanzii pe piata - (la momentul prezent poate fi diferita si se poate schimba in viitor): | E11: 0.03 | F11: Introduceti dobanda de piata anuala (oferita la depozite economii alternative)
C12: Rata estimata medie anuala a inflatiei | E12: 0.025 | F12: Introduceti inflatia medie anuala estimata pentru orizontul de economisire
C13: Dobanda reala (ajustata cu inflatia-calcul) | E13: =(1+$E$11)/(1+$E$12)-1 -> 0.00487804878
C14: Comisioane bancare (administrare, retragere etc. - Ipoteza = 0 RON) | E14: 0
C15: Impozit pe dobanzi retinut la sursa | E15: 0.1
B17: Note/Riscuri:
B18: 1. Cu cat rata dobanzii de piata/curenta la instrumente de economisire alternative este mai mica, cu atat mai avantajos contul Junior Centenar si invers. | N18: PORTAL VOX CERNICA
B19: 2. Cu cat inflatia este mai mare, cu atat castigul in termeni reali este mai mic | N19: www.voxcernica.ro
B20: 3. Celulele marcate cu galben pot fi schimbate pentru diferite scenarii cu privire la dobanda curenta/estimata/de piata/nominala la depozite bancare alternative, inflatia previzionata si comisioane bancare, dobanda simpla sau compusa | N20: Versiune 1.5 - 10 Aprilie 2019
B21: 4. Calculele prezentate au doar un scop ilustrativ si nu reprezinta recomandari de investitie in vreunul din scenariile prezentate. Autorul nu garanteaza validitatea/corectitudinea ipotezelor, calculelor si rezultatelor. | N21: Simulare randament Cont Junior Centenar
B23: Rezultate | E23: RON | P23: %
C24: # | D24: Scenarii: | E24: Total depuneri | F24: Dobanzi | G24: Prima de stat | H24: Impozit | I24: Comisioane | J24: Depuneri rambursate | K24: Economii totale la scadenta | L24: Castig/pierdere nominala | M24: Castig/pierdere neta nominala (include inflatia) | N24: Impact inflatie | O24: Castig/pierdere actualizata neta (VAN) | P24: Randament la maturitate (nominal)
B25: Nominale | C25: 1 | D25: Caz 1. Banii se tin la "saltea" | E25: =-AA41 -> -21600 | F25: 0 | G25: 0 | H25: 0 | I25: 0 | J25: =AA60 -> 21600 | K25: =AA60 -> 21600 | L25: =SUM(F25:I25) -> 0 | M25: =K25+E25 -> 0 | O25: =NPV($E$11,H61:Z61)*(1+$E$11) -> -4311.618642 | P25: =IRR(H61:Z61) -> -2.220446049e-16
C26: 2 | D26: Caz 2. Banii se economisesc in contul Junior Centenar | E26: =-AA41 -> -21600 | F26: =AA65 -> 6156 | G26: =AA66 -> 10200 | H26: 0 | I26: 0 | J26: =AA64 -> 21600 | K26: =SUM(AA64:AA66) -> 37956 | L26: =SUM(F26:I26) -> 16356 | M26: =K26+E26 -> 16356 | O26: =NPV($E$11,H67:Z67)*(1+$E$11) -> 5295.80756 | P26: =IRR(H67:Z67) -> 0.0566226965
C27: 3 | D27: Caz 3. Banii economisiti la banca cu 3% dobanda simpla | E27: =-AA41 -> -21600 | F27: =AA71 -> 6156 | G27: 0 | H27: =AA73 -> -615.6 | I27: =AA74 -> 0 | J27: =AA72 -> 21600 | K27: =SUM(AA71:AA74) -> 27140.4 | L27: =SUM(F27:I27) -> 5540.4 | M27: =K27+E27 -> 5540.4 | O27: =NPV($E$11,H75:Z75)*(1+$E$11) -> -431.1618642 | P27: =IRR(H75:Z75) -> 0.027
C28: 4 | D28: Caz 4. Banii economisiti la banca cu 3% dobanda compusa | E28: =-AA41 -> -21600 | F28: =AA79 -> 7340.242123 | G28: 0 | H28: =AA81 -> -734.0242123 | I28: =AA74 -> 0 | J28: =AA80 -> 21600 | K28: =SUM(AA79:AA82) -> 28206.21791 | L28: =SUM(F28:I28) -> 6606.217911 | M28: =K28+E28 -> 6606.217911 | O28: =NPV($E$11,H83:Z83)*(1+$E$11) -> 274.5872325 | P28: =IRR(H83:Z83) -> 0.03189243156
C29: # | D29: Scenarii: | E29: Total depuneri | F29: Dobanzi | G29: Prima de stat | H29: Impozit | I29: Comisioane | J29: Depuneri rambursate | K29: Economii totale la scadenta | L29: Castig / pierdere reala | M29: Castig / pierdere neta reala (exclude inflatia) | N29: Impact inflatie | O29: Castig/pierdere actualizata neta (VAN) | P29: Randament la maturitate (real)
B30: Reale (ajustare la inflatie) | C30: 1 | D30: Caz 1. Banii se tin la "saltea" | E30: =AA91 -> -17654.63726 | F30: 0 | G30: 0 | H30: 0 | I30: 0 | J30: =AA92 -> 13849.18364 | K30: =SUM(F30:J30) -> 13849.18364 | L30: =SUM(F30:I30) -> 0 | M30: =K30+E30 -> -3805.453619 | N30: =M30-L30 -> -3805.453619 | O30: =NPV($E$13,H93:Z93)*(1+$E$13) -> -4311.618642 | P30: =IRR(H93:Z93) -> -0.0243902439
C31: 2 | D31: Caz 2. Banii se economisesc in contul Junior Centenar | E31: =AA95 -> -17654.63726 | F31: =AA97 -> 3947.017338 | G31: =AA98 -> 6539.892275 | H31: 0 | I31: 0 | J31: =AA96 -> 13849.18364 | K31: =SUM(F31:J31) -> 24336.09325 | L31: =SUM(F31:I31) -> 10486.90961 | M31: =K31+E31 -> 6681.455995 | N31: =M31-L31 -> -3805.453619 | O31: =NPV($E$13,H99:Z99)*(1+$E$13) -> 5295.80756 | P31: =IRR(H99:Z99) -> 0.03085141122
C32: 3 | D32: Caz 3. Banii economisiti la banca cu 3% dobanda simpla | E32: =AA101 -> -17654.63726 | F32: =AA102 -> 4566.544342 | G32: 0 | H32: =AA104 -> -456.6544342 | I32: =AA105 -> 0 | J32: =AA103 -> 13849.18364 | K32: =SUM(F32:J32) -> 17959.07355 | L32: =SUM(F32:I32) -> 4109.889908 | M32: =K32+E32 -> 304.4362895 | N32: =M32-L32 -> -3805.453619 | O32: =NPV($E$13,H106:Z106)*(1+$E$13) -> -431.1618642 | P32: =IRR(H106:Z106) -> 0.001951219512
C33: 4 | D33: Caz 4. Banii economisiti la banca cu 3% dobanda compusa | E33: =AA108 -> -17654.63726 | F33: =AA109 -> 5405.156382 | G33: 0 | H33: =AA111 -> -540.5156382 | I33: =AA112 -> 0 | J33: =AA110 -> 13849.18364 | K33: =SUM(F33:J33) -> 18713.82439 | L33: =SUM(F33:I33) -> 4864.640744 | M33: =K33+E33 -> 1059.187125 | N33: =M33-L33 -> -3805.453619 | O33: =NPV($E$13,H113:Z113)*(1+$E$13) -> 274.5872325 | P33: =IRR(H113:Z113) -> 0.00672432347
B35: Calcule
G36: Inceput an | I36: 2019-01-01 | J36: =DATE(YEAR(I36)+1,MONTH(I36),DAY(I36)) -> 2020-01-01 | K36: 2021-01-01 | L36: 2022-01-01 | M36: 2023-01-01 | N36: 2024-01-01 | O36: 2025-01-01 | P36: 2026-01-01 | Q36: 2027-01-01 | R36: 2028-01-01 | S36: 2029-01-01 | T36: 2030-01-01 | U36: 2031-01-01 | V36: 2032-01-01 | W36: 2033-01-01 | X36: 2034-01-01 | Y36: 2035-01-01 | Z36: 2036-01-01
G37: Sfarasit an | H37: =I36 -> 2019-01-01 | I37: 2019-12-31 | J37: =DATE(YEAR(I37)+1,MONTH(I37),DAY(I37)) -> 2020-12-31 | K37: =DATE(YEAR(J37)+1,MONTH(J37),DAY(J37)) -> 2021-12-31 | L37: =DATE(YEAR(K37)+1,MONTH(K37),DAY(K37)) -> 2022-12-31 | M37: 2023-12-31 | N37: 2024-12-31 | O37: 2025-12-31 | P37: 2026-12-31 | Q37: 2027-12-31 | R37: 2028-12-31 | S37: 2029-12-31 | T37: 2030-12-31 | U37: 2031-12-31 | V37: 2032-12-31 | W37: 2033-12-31 | X37: 2034-12-31 | Y37: 2035-12-31 | Z37: 2036-12-31
D38: Numar ani cumulati | H38: 0 | I38: 1 | J38: =I38+1 -> 2 | K38: =J38+1 -> 3 | L38: =K38+1 -> 4 | M38: 5 | N38: =M38+1 -> 6 | O38: 7 | P38: 8 | Q38: =P38+1 -> 9 | R38: =Q38+1 -> 10 | S38: =R38+1 -> 11 | T38: 12 | U38: 13 | V38: 14 | W38: 15 | X38: 16 | Y38: 17 | Z38: =Y38+1 -> 18 | AA38: Total
D39: Investitiile sunt considerate a fi facute la inceputul anului iar dobanzile, primele, comisioanele si impozitul sunt platite la sfarsitul perioadei
D40: Prima de stat acordata la majorat - 6.000 ron / an cu exceptia ultimului an | I40: 0 | J40: 0 | K40: 0 | L40: 0 | M40: 0 | N40: 0 | O40: 0 | P40: 0 | Q40: 0 | R40: 0 | S40: 0 | T40: 0 | U40: 0 | V40: 0 | W40: 0 | X40: 0 | Y40: 0 | Z40: =E7*E8-E7 -> 10200 | AA40: =Z40 -> 10200
D41: Sume minime anuale depuse: 1.200 lei / pe an. Pentru sumele suplimentare se calculeaza dobanda dar nu se suplimenteaza prima: | E41: La inceputul anului | F41: RON | H41: =E4 -> 1200 | I41: =H41 -> 1200 | J41: =I41 -> 1200 | K41: =J41 -> 1200 | L41: 1200 | M41: 1200 | N41: 1200 | O41: 1200 | P41: 1200 | Q41: 1200 | R41: 1200 | S41: 1200 | T41: 1200 | U41: 1200 | V41: 1200 | W41: 1200 | X41: 1200 | Y41: 1200 | AA41: =SUM(H41:Y41) -> 21600
D42: Scenarii dobanda: | E42: Cumulat la sfarsitul anului | F42: RON | H42: =+H41+G42 -> 1200 | I42: =+I41+H42 -> 2400 | J42: =+J41+I42 -> 3600 | K42: =+K41+J42 -> 4800 | L42: 6000 | M42: =+M41+L42 -> 7200 | N42: 8400 | O42: 9600 | P42: =+P41+O42 -> 10800 | Q42: 12000 | R42: =+R41+Q42 -> 13200 | S42: 14400 | T42: 15600 | U42: 16800 | V42: 18000 | W42: 19200 | X42: 20400 | Y42: 21600 | AA42: =Y42 -> 21600
D44: Simpla sau compusa calculata si platita la sfarsitul perioadei de 18 ani conform Junior Centenar: | AA44: Total
D45: =E6 -> Simpla | E45: Nominala | G45: =$E$5 -> 0.03 | I45: =IF($E$6="Simpla",$G$45*H42,$E$4*(1+$G$45)^I38-H41) -> 36 | J45: 72 | K45: 108 | L45: 144 | M45: 180 | N45: 216 | O45: 252 | P45: 288 | Q45: 324 | R45: 360 | S45: 396 | T45: 432 | U45: 468 | V45: 504 | W45: 540 | X45: 576 | Y45: 612 | Z45: 648 | AA45: =SUM(I45:Z45) -> 6156
E46: Reala | G46: =(1+$E$5)/(1+$E$12)-1 -> 0.00487804878 | I46: =IF(E6="Simpla",H42/I$90*(1+$G$46)-H42/I$90,$E$4*(1+$G$46)^I38-H41) -> 5.710886377 | J46: 11.73587151 | K46: 17.6467782 | L46: 23.58651858 | M46: 29.5552333 | N46: 35.55306371 | O46: 41.58015182 | P46: 47.63664037 | Q46: 53.72267276 | R46: 59.83839312 | S46: 65.98394625 | T46: 72.1594777 | U46: 78.36513369 | V46: 84.60106117 | W46: 90.86740781 | X46: 97.16432199 | Y46: 103.4919528 | Z46: 109.8504502 | AA46: =SUM(I46:Z46) -> 1029.049961
D48: Dobanda de piata simpla si compusa
B49: Nominala | D49: Simpla-cumulata la sf. anului: | E49: Nominala | F49: RON | G49: =$E$11 -> 0.03 | I49: =H42*(1+$G$49)-H42 -> 36 | J49: 72 | K49: 108 | L49: 144 | M49: 180 | N49: 216 | O49: 252 | P49: 288 | Q49: 324 | R49: 360 | S49: 396 | T49: 432 | U49: 468 | V49: 504 | W49: 540 | X49: 576 | Y49: 612 | Z49: 648 | AA49: =SUM(I49:Z49) -> 6156
D50: Compusa-cumulata la sf. anului: | E50: Nominala | G50: =$E$11 -> 0.03 | I50: =$E$4*(1+$G$49)^I38-H41 -> 36 | J50: =$E$4*(1+$G$49)^J38-I41+I50 -> 109.08 | K50: 220.3524 | L50: 370.962972 | M50: 562.0918612 | N50: 794.954617 | O50: 1070.803256 | P50: 1390.927353 | Q50: 1756.655174 | R50: 2169.354829 | S50: 2630.435474 | T50: 3141.348538 | U50: 3703.588994 | V50: 4318.696664 | W50: 4988.257564 | X50: 5713.905291 | Y50: 6497.32245 | Z50: 7340.242123 | AA50: =Z50 -> 7340.242123
D51: Compusa-flux platit anual | E51: Nominala | F51: RON | G51: =$E$11 -> 0.03 | I51: =I50 -> 36 | J51: =J50-SUM($I$51:I51) -> 73.08 | K51: =K50-SUM($I$51:J51) -> 111.2724 | L51: =L50-SUM($I$51:K51) -> 150.610572 | M51: =M50-SUM($I$51:L51) -> 191.1288892 | N51: =N50-SUM($I$51:M51) -> 232.8627558 | O51: =O50-SUM($I$51:N51) -> 275.8486385 | P51: =P50-SUM($I$51:O51) -> 320.1240977 | Q51: =Q50-SUM($I$51:P51) -> 365.7278206 | R51: =R50-SUM($I$51:Q51) -> 412.6996552 | S51: =S50-SUM($I$51:R51) -> 461.0806449 | T51: =T50-SUM($I$51:S51) -> 510.9130642 | U51: =U50-SUM($I$51:T51) -> 562.2404561 | V51: =V50-SUM($I$51:U51) -> 615.1076698 | W51: =W50-SUM($I$51:V51) -> 669.5608999 | X51: =X50-SUM($I$51:W51) -> 725.6477269 | Y51: =Y50-SUM($I$51:X51) -> 783.4171587 | Z51: =Z50-SUM($I$51:Y51) -> 842.9196735 | AA51: =SUM(I51:Z51) -> 7340.242123
AA53: Total
D54: Dobanda de piata simpla si compusa
B55: Reala (ajustare la inflatie) | D55: Simpla-cumulata la sf. anului: | F55: =(1+$E$11)/(1+$E$12)-1 -> 0.00487804878 | I55: =H42/I$90*(1+$F$55)-H42/I$90 -> 5.710886377 | J55: 11.14319293 | K55: 16.30711161 | L55: 21.2125029 | M55: 25.86890598 | N55: 30.28554846 | O55: 34.47135597 | P55: 38.43496136 | Q55: 42.18471369 | R55: 45.72868693 | S55: 49.07468841 | T55: 52.23026705 | U55: 55.20272127 | V55: 57.99910677 | W55: 60.62624402 | X55: 63.09072548 | Y55: 65.39892275 | Z55: 67.55699337 | AA55: =SUM(I55:Z55) -> 742.5275353
D56: Compusa-cumulata la sf. anului: | F56: =(1+$E$11)/(1+$E$12)-1 -> 0.00487804878 | I56: =$E$4*(1+$F$56)^I38-H41 -> 5.853658537 | J56: =$E$4*(1+$F$56)^J38-I41+I56 -> 17.58953004 | K56: 35.23630824 | L56: 58.82282681 | M56: 88.37806012 | N56: 123.9311238 | O56: 165.5112756 | P56: 213.147916 | Q56: 266.8705888 | R56: 326.7089819 | S56: 392.6929281 | T56: 464.8524058 | U56: 543.2175395 | V56: 627.8186007 | W56: 718.6860085 | X56: 815.8503305 | Y56: 919.3422833 | Z56: 1029.192733 | AA56: =Z56 -> 1029.192733
D57: Compusa-flux platit anual | F57: RON | I57: =I56 -> 5.853658537 | J57: =J56-SUM($I$57:I57) -> 11.73587151 | K57: =K56-SUM($I$57:J57) -> 17.6467782 | L57: =L56-SUM($I$57:K57) -> 23.58651858 | M57: =M56-SUM($I$57:L57) -> 29.5552333 | N57: =N56-SUM($I$57:M57) -> 35.55306371 | O57: =O56-SUM($I$57:N57) -> 41.58015182 | P57: =P56-SUM($I$57:O57) -> 47.63664037 | Q57: =Q56-SUM($I$57:P57) -> 53.72267276 | R57: =R56-SUM($I$57:Q57) -> 59.83839312 | S57: =S56-SUM($I$57:R57) -> 65.98394625 | T57: =T56-SUM($I$57:S57) -> 72.1594777 | U57: =U56-SUM($I$57:T57) -> 78.36513369 | V57: =V56-SUM($I$57:U57) -> 84.60106117 | W57: =W56-SUM($I$57:V57) -> 90.86740781 | X57: =X56-SUM($I$57:W57) -> 97.16432199 | Y57: =Y56-SUM($I$57:X57) -> 103.4919528 | Z57: =Z56-SUM($I$57:Y57) -> 109.8504502 | AA57: =SUM(I57:Z57) -> 1029.192733
B58: Fluxuri nominale
B59: Nominale | C59: 1 | D59: Caz 1. Banii se tin la "saltea" | G59: Sume economisite | H59: =-H41 -> -1200 | I59: -1200 | J59: -1200 | K59: -1200 | L59: -1200 | M59: -1200 | N59: -1200 | O59: -1200 | P59: -1200 | Q59: -1200 | R59: -1200 | S59: -1200 | T59: -1200 | U59: -1200 | V59: -1200 | W59: -1200 | X59: -1200 | Y59: -1200 | AA59: =SUM(H59:Z59) -> -21600
G60: Depuneri rambursate | I60: 0 | J60: 0 | K60: 0 | L60: 0 | M60: 0 | N60: 0 | O60: 0 | P60: 0 | Q60: 0 | R60: 0 | S60: 0 | T60: 0 | U60: 0 | V60: 0 | W60: 0 | X60: 0 | Y60: 0 | Z60: =Y42 -> 21600 | AA60: =SUM(H60:Z60) -> 21600
G61: Total flux annual nominal | H61: =H59+H60 -> -1200 | I61: =I59+I60 -> -1200 | J61: -1200 | K61: -1200 | L61: -1200 | M61: -1200 | N61: -1200 | O61: -1200 | P61: -1200 | Q61: -1200 | R61: -1200 | S61: -1200 | T61: -1200 | U61: -1200 | V61: -1200 | W61: -1200 | X61: -1200 | Y61: -1200 | Z61: 21600 | AA61: =SUM(AA59:AA60) -> 0
AA62: Total
C63: 2 | D63: Caz 2. Banii se economisesc in contul Junior Centenar | G63: Sume economisite | H63: =-H41 -> -1200 | I63: -1200 | J63: -1200 | K63: -1200 | L63: -1200 | M63: -1200 | N63: -1200 | O63: -1200 | P63: -1200 | Q63: -1200 | R63: -1200 | S63: -1200 | T63: -1200 | U63: -1200 | V63: -1200 | W63: -1200 | X63: -1200 | Y63: -1200 | AA63: =SUM(H63:Y63) -> -21600
D64: cu dobanda simpla calculata si platita la sfarsitul perioadei | G64: Depuneri rambursate | I64: 0 | J64: 0 | K64: 0 | L64: 0 | M64: 0 | N64: 0 | O64: 0 | P64: 0 | Q64: 0 | R64: 0 | S64: 0 | T64: 0 | U64: 0 | V64: 0 | W64: 0 | X64: 0 | Y64: 0 | Z64: =AA41 -> 21600 | AA64: =SUM(H64:Z64) -> 21600
D65: de economisire +prima de stat | G65: =IF(E6="Simpla","Dobanda Simpla","Dobanda Compusa") -> Dobanda Simpla | Z65: =AA45 -> 6156 | AA65: =SUM(H65:Z65) -> 6156
G66: Prima de stat | I66: =I40 -> 0 | J66: 0 | K66: 0 | L66: 0 | M66: 0 | N66: 0 | O66: 0 | P66: 0 | Q66: 0 | R66: 0 | S66: 0 | T66: 0 | U66: 0 | V66: 0 | W66: 0 | X66: 0 | Y66: 0 | Z66: 10200 | AA66: =SUM(H66:Z66) -> 10200
G67: Total flux annual nominal | H67: =SUM(H63:H66) -> -1200 | I67: =SUM(I63:I66) -> -1200 | J67: -1200 | K67: -1200 | L67: -1200 | M67: -1200 | N67: -1200 | O67: -1200 | P67: -1200 | Q67: -1200 | R67: -1200 | S67: -1200 | T67: -1200 | U67: -1200 | V67: -1200 | W67: -1200 | X67: -1200 | Y67: -1200 | Z67: 37956 | AA67: 16356
AA69: Total
C70: 3 | D70: Caz 3. Banii economisiti la banca cu 3% dobanda simpla | G70: Sume economisite | H70: =-H41 -> -1200 | I70: -1200 | J70: -1200 | K70: -1200 | L70: -1200 | M70: -1200 | N70: -1200 | O70: -1200 | P70: -1200 | Q70: -1200 | R70: -1200 | S70: -1200 | T70: -1200 | U70: -1200 | V70: -1200 | W70: -1200 | X70: -1200 | Y70: -1200 | AA70: =SUM(H70:Z70) -> -21600
G71: Dobanda simpla | I71: =I49 -> 36 | J71: 72 | K71: 108 | L71: 144 | M71: 180 | N71: 216 | O71: 252 | P71: 288 | Q71: 324 | R71: 360 | S71: 396 | T71: 432 | U71: 468 | V71: 504 | W71: 540 | X71: 576 | Y71: 612 | Z71: 648 | AA71: =SUM(H71:Z71) -> 6156
G72: Depuneri rambursate | I72: 0 | J72: 0 | K72: 0 | L72: 0 | M72: 0 | N72: 0 | O72: 0 | P72: 0 | Q72: 0 | R72: 0 | S72: 0 | T72: 0 | U72: 0 | V72: 0 | W72: 0 | X72: 0 | Y72: 0 | Z72: =Y42 -> 21600 | AA72: =SUM(H72:Z72) -> 21600
G73: Impozit | I73: =IF(I71>0,-$E$15*I$71,0) -> -3.6 | J73: -7.2 | K73: -10.8 | L73: -14.4 | M73: -18 | N73: -21.6 | O73: -25.2 | P73: -28.8 | Q73: -32.4 | R73: -36 | S73: -39.6 | T73: -43.2 | U73: -46.8 | V73: -50.4 | W73: -54 | X73: -57.6 | Y73: -61.2 | Z73: -64.8 | AA73: =SUM(H73:Z73) -> -615.6
G74: Comisioane bancare | H74: 0 | I74: 0 | J74: 0 | K74: 0 | L74: 0 | M74: 0 | N74: 0 | O74: 0 | P74: 0 | Q74: 0 | R74: 0 | S74: 0 | T74: 0 | U74: 0 | V74: 0 | W74: 0 | X74: 0 | Y74: 0 | Z74: 0 | AA74: =SUM(H74:Z74) -> 0
G75: Total flux annual nominal | H75: =SUM(H70:H74) -> -1200 | I75: =SUM(I70:I74) -> -1167.6 | J75: -1135.2 | K75: -1102.8 | L75: -1070.4 | M75: -1038 | N75: -1005.6 | O75: -973.2 | P75: -940.8 | Q75: -908.4 | R75: -876 | S75: -843.6 | T75: -811.2 | U75: -778.8 | V75: -746.4 | W75: -714 | X75: -681.6 | Y75: =SUM(Y70:Y74) -> -649.2 | Z75: =SUM(Z70:Z74) -> 22183.2 | AA75: =SUM(AA70:AA74) -> 5540.4
AA77: Total
C78: 4 | D78: Caz 4. Banii economisiti la banca cu 3% dobanda compusa | G78: Sume economisite | H78: =-H41 -> -1200 | I78: -1200 | J78: -1200 | K78: -1200 | L78: -1200 | M78: -1200 | N78: -1200 | O78: -1200 | P78: -1200 | Q78: -1200 | R78: -1200 | S78: -1200 | T78: -1200 | U78: -1200 | V78: -1200 | W78: -1200 | X78: -1200 | Y78: -1200 | AA78: =SUM(H78:Z78) -> -21600
G79: Dobanda compusa anual | I79: =I51 -> 36 | J79: 73.08 | K79: 111.2724 | L79: 150.610572 | M79: 191.1288892 | N79: 232.8627558 | O79: 275.8486385 | P79: 320.1240977 | Q79: 365.7278206 | R79: 412.6996552 | S79: 461.0806449 | T79: 510.9130642 | U79: 562.2404561 | V79: 615.1076698 | W79: 669.5608999 | X79: 725.6477269 | Y79: 783.4171587 | Z79: 842.9196735 | AA79: =SUM(H79:Z79) -> 7340.242123
G80: Depuneri rambursate | I80: 0 | J80: 0 | K80: 0 | L80: 0 | M80: 0 | N80: 0 | O80: 0 | P80: 0 | Q80: 0 | R80: 0 | S80: 0 | T80: 0 | U80: 0 | V80: 0 | W80: 0 | X80: 0 | Y80: 0 | Z80: =AA41 -> 21600 | AA80: =SUM(H80:Z80) -> 21600
G81: Impozit | I81: =IF(I79>0,-$E$15*I$79,0) -> -3.6 | J81: -7.308 | K81: -11.12724 | L81: -15.0610572 | M81: -19.11288892 | N81: -23.28627558 | O81: -27.58486385 | P81: -32.01240977 | Q81: -36.57278206 | R81: -41.26996552 | S81: -46.10806449 | T81: -51.09130642 | U81: -56.22404561 | V81: -61.51076698 | W81: -66.95608999 | X81: -72.56477269 | Y81: -78.34171587 | Z81: -84.29196735 | AA81: -734.0242123
G82: Comisioane bancare | H82: 0 | I82: 0 | J82: 0 | K82: 0 | L82: 0 | M82: 0 | N82: 0 | O82: 0 | P82: 0 | Q82: 0 | R82: 0 | S82: 0 | T82: 0 | U82: 0 | V82: 0 | W82: 0 | X82: 0 | Y82: 0 | Z82: 0 | AA82: 0
G83: Total flux annual nominal | H83: =SUM(H78:H82) -> -1200 | I83: =SUM(I78:I82) -> -1167.6 | J83: =SUM(J78:J82) -> -1134.228 | K83: -1099.85484 | L83: -1064.450485 | M83: -1027.984 | N83: -990.4235197 | O83: -951.7362253 | P83: -911.8883121 | Q83: -870.8449615 | R83: -828.5703103 | S83: -785.0274196 | T83: -740.1782422 | U83: -693.9835895 | V83: -646.4030972 | W83: -597.3951901 | X83: -546.9170458 | Y83: -494.9245571 | Z83: 22358.62771 | AA83: 6606.217911
B85: Fluxuri reale
B86: Reale (ajustate la inflatie) | G86: Inceput an | I86: 2019-01-01 | J86: =DATE(YEAR(I86)+1,MONTH(I86),DAY(I86)) -> 2020-01-01 | K86: 2021-01-01 | L86: 2022-01-01 | M86: 2023-01-01 | N86: 2024-01-01 | O86: 2025-01-01 | P86: 2026-01-01 | Q86: 2027-01-01 | R86: 2028-01-01 | S86: 2029-01-01 | T86: 2030-01-01 | U86: 2031-01-01 | V86: 2032-01-01 | W86: 2033-01-01 | X86: 2034-01-01 | Y86: 2035-01-01 | Z86: 2036-01-01
G87: Sfarasit an | H87: =I86 -> 2019-01-01 | I87: =I37 -> 2019-12-31 | J87: 2020-12-31 | K87: 2021-12-31 | L87: 2022-12-31 | M87: 2023-12-31 | N87: 2024-12-31 | O87: 2025-12-31 | P87: 2026-12-31 | Q87: 2027-12-31 | R87: 2028-12-31 | S87: 2029-12-31 | T87: 2030-12-31 | U87: 2031-12-31 | V87: 2032-12-31 | W87: 2033-12-31 | X87: 2034-12-31 | Y87: 2035-12-31 | Z87: 2036-12-31
H88: 0 | I88: 1 | J88: =I88+1 -> 2 | K88: =J88+1 -> 3 | L88: =K88+1 -> 4 | M88: =L88+1 -> 5 | N88: =M88+1 -> 6 | O88: =N88+1 -> 7 | P88: =O88+1 -> 8 | Q88: =P88+1 -> 9 | R88: =Q88+1 -> 10 | S88: =R88+1 -> 11 | T88: =S88+1 -> 12 | U88: =T88+1 -> 13 | V88: =U88+1 -> 14 | W88: =V88+1 -> 15 | X88: =W88+1 -> 16 | Y88: =X88+1 -> 17 | Z88: =Y88+1 -> 18
G89: Indice inflatie | H89: 1 | I89: =I90 -> 1.025 | J89: 1.050625 | K89: 1.076890625 | L89: 1.103812891 | M89: 1.131408213 | N89: 1.159693418 | O89: 1.188685754 | P89: 1.218402898 | Q89: 1.24886297 | R89: 1.280084544 | S89: 1.312086658 | T89: 1.344888824 | U89: 1.378511045 | V89: 1.412973821 | W89: 1.448298166 | X89: 1.484505621 | Y89: 1.521618261
I90: =(1+$E$12)^I38 -> 1.025 | J90: 1.050625 | K90: 1.076890625 | L90: 1.103812891 | M90: 1.131408213 | N90: 1.159693418 | O90: 1.188685754 | P90: 1.218402898 | Q90: 1.24886297 | R90: 1.280084544 | S90: 1.312086658 | T90: 1.344888824 | U90: 1.378511045 | V90: 1.412973821 | W90: 1.448298166 | X90: 1.484505621 | Y90: 1.521618261 | Z90: 1.559658718 | AA90: Total
C91: 1 | D91: Caz 1. Banii se tin la "saltea" | G91: Sume economisite | H91: =H59/H$89 -> -1200 | I91: -1170.731707 | J91: -1142.177275 | K91: -1114.319293 | L91: -1087.140774 | M91: -1060.625145 | N91: -1034.756239 | O91: -1009.518282 | P91: -984.895885 | Q91: -960.8740341 | R91: -937.4380821 | S91: -914.5737386 | T91: -892.2670621 | U91: -870.5044508 | V91: -849.2726349 | W91: -828.5586682 | X91: -808.3499202 | Y91: -788.6340685 | AA91: =SUM(H91:Z91) -> -17654.63726
G92: Depuneri rambursate | I92: =I60/I$90 -> 0 | J92: 0 | K92: 0 | L92: 0 | M92: 0 | N92: 0 | O92: 0 | P92: 0 | Q92: 0 | R92: 0 | S92: 0 | T92: 0 | U92: 0 | V92: 0 | W92: 0 | X92: 0 | Y92: 0 | Z92: 13849.18364 | AA92: =SUM(H92:Z92) -> 13849.18364
G93: Total flux anual real | H93: =SUM(H91:H92) -> -1200 | I93: =SUM(I91:I92) -> -1170.731707 | J93: -1142.177275 | K93: -1114.319293 | L93: -1087.140774 | M93: -1060.625145 | N93: -1034.756239 | O93: -1009.518282 | P93: -984.895885 | Q93: -960.8740341 | R93: -937.4380821 | S93: -914.5737386 | T93: -892.2670621 | U93: -870.5044508 | V93: -849.2726349 | W93: -828.5586682 | X93: -808.3499202 | Y93: -788.6340685 | Z93: 13849.18364 | AA93: -3805.453619
AA94: Total
C95: 2 | D95: Caz 2. Banii se economisesc in contul Junior Centenar | G95: Sume economisite | H95: =H63/H$89 -> -1200 | I95: -1170.731707 | J95: -1142.177275 | K95: -1114.319293 | L95: -1087.140774 | M95: -1060.625145 | N95: -1034.756239 | O95: -1009.518282 | P95: -984.895885 | Q95: -960.8740341 | R95: -937.4380821 | S95: -914.5737386 | T95: -892.2670621 | U95: -870.5044508 | V95: -849.2726349 | W95: -828.5586682 | X95: -808.3499202 | Y95: -788.6340685 | AA95: =SUM(H95:Y95) -> -17654.63726
D96: cu dobanda simpla calculata si platita la sfarsitul perioadei | G96: Depuneri rambursate | I96: =H64/I$90 -> 0 | J96: 0 | K96: 0 | L96: 0 | M96: 0 | N96: 0 | O96: 0 | P96: 0 | Q96: 0 | R96: 0 | S96: 0 | T96: 0 | U96: 0 | V96: 0 | W96: 0 | X96: 0 | Y96: 0 | Z96: =Z64/Z$90 -> 13849.18364 | AA96: =SUM(H96:Z96) -> 13849.18364
D97: de economisire +prima de stat | G97: =IF(E6="Simpla","Dobanda Simpla","Dobanda Compusa") -> Dobanda Simpla | I97: =I65/I$90 -> 0 | J97: =J65/J$90 -> 0 | K97: 0 | L97: 0 | M97: 0 | N97: 0 | O97: 0 | P97: 0 | Q97: 0 | R97: 0 | S97: 0 | T97: 0 | U97: 0 | V97: 0 | W97: 0 | X97: 0 | Y97: 0 | Z97: =Z65/Z$90 -> 3947.017338 | AA97: 3947.017338
G98: Prima de stat | I98: =H66/I$90 -> 0 | J98: 0 | K98: 0 | L98: 0 | M98: 0 | N98: 0 | O98: 0 | P98: 0 | Q98: 0 | R98: 0 | S98: 0 | T98: 0 | U98: 0 | V98: 0 | W98: 0 | X98: 0 | Y98: 0 | Z98: =Z66/Z$90 -> 6539.892275 | AA98: 6539.892275
G99: Total flux anual real | H99: =SUM(H95:H98) -> -1200 | I99: =SUM(I95:I98) -> -1170.731707 | J99: =SUM(J95:J98) -> -1142.177275 | K99: -1114.319293 | L99: -1087.140774 | M99: -1060.625145 | N99: -1034.756239 | O99: -1009.518282 | P99: -984.895885 | Q99: -960.8740341 | R99: -937.4380821 | S99: -914.5737386 | T99: -892.2670621 | U99: -870.5044508 | V99: -849.2726349 | W99: -828.5586682 | X99: -808.3499202 | Y99: -788.6340685 | Z99: 24336.09325 | AA99: 6681.455995
AA100: Total
C101: 3 | D101: Caz 3. Banii economisiti la banca cu 3% dobanda simpla | G101: Sume economisite | H101: =H70/H$89 -> -1200 | I101: -1170.731707 | J101: -1142.177275 | K101: -1114.319293 | L101: -1087.140774 | M101: -1060.625145 | N101: -1034.756239 | O101: -1009.518282 | P101: -984.895885 | Q101: -960.8740341 | R101: -937.4380821 | S101: -914.5737386 | T101: -892.2670621 | U101: -870.5044508 | V101: -849.2726349 | W101: -828.5586682 | X101: -808.3499202 | Y101: -788.6340685 | AA101: =SUM(H101:Z101) -> -17654.63726
G102: Dobanda simpla | I102: =I71/I$90 -> 35.12195122 | J102: 68.53063653 | K102: 100.2887364 | L102: 130.4568929 | M102: 159.0937718 | N102: 186.256123 | O102: 211.9988392 | P102: 236.3750124 | Q102: 259.4359892 | R102: 281.2314246 | S102: 301.8093337 | T102: 321.2161423 | U102: 339.4967358 | V102: 356.6945067 | W102: 372.8514007 | X102: 388.0079617 | Y102: 402.2033749 | Z102: 415.4755093 | AA102: =SUM(H102:Z102) -> 4566.544342
G103: Depuneri rambursate | I103: =I72/I$90 -> 0 | J103: 0 | K103: 0 | L103: 0 | M103: 0 | N103: 0 | O103: 0 | P103: 0 | Q103: 0 | R103: 0 | S103: 0 | T103: 0 | U103: 0 | V103: 0 | W103: 0 | X103: 0 | Y103: 0 | Z103: 13849.18364 | AA103: 13849.18364
G104: Impozit | I104: =IF(I102>0,-$E$15*I$102,0) -> -3.512195122 | J104: -6.853063653 | K104: -10.02887364 | L104: -13.04568929 | M104: -15.90937718 | N104: -18.6256123 | O104: -21.19988392 | P104: -23.63750124 | Q104: -25.94359892 | R104: -28.12314246 | S104: -30.18093337 | T104: -32.12161423 | U104: -33.94967358 | V104: -35.66945067 | W104: -37.28514007 | X104: -38.80079617 | Y104: -40.22033749 | Z104: -41.54755093 | AA104: -456.6544342
G105: Comisioane bancare | I105: =I74/I$90 -> 0 | J105: 0 | K105: 0 | L105: 0 | M105: 0 | N105: 0 | O105: 0 | P105: 0 | Q105: 0 | R105: 0 | S105: 0 | T105: 0 | U105: 0 | V105: 0 | W105: 0 | X105: 0 | Y105: 0 | Z105: 0 | AA105: 0
G106: Total flux anual real | H106: =SUM(H101:H105) -> -1200 | I106: =SUM(I101:I105) -> -1139.121951 | J106: -1080.499703 | K106: -1024.05943 | L106: -969.7295702 | M106: -917.4407505 | N106: -867.1257284 | O106: -818.7193268 | P106: -772.1583738 | Q106: -727.3816438 | R106: -684.3297999 | S106: -642.9453382 | T106: -603.1725339 | U106: -564.9573886 | V106: -528.2475789 | W106: -492.9924076 | X106: -459.1427547 | Y106: -426.6510311 | Z106: 14223.1116 | AA106: 304.4362895
AA107: Total
C108: 4 | D108: Caz 4. Banii economisiti la banca cu 3% dobanda compusa | G108: Sume economisite | H108: =H78/H$89 -> -1200 | I108: -1170.731707 | J108: -1142.177275 | K108: -1114.319293 | L108: -1087.140774 | M108: -1060.625145 | N108: -1034.756239 | O108: -1009.518282 | P108: -984.895885 | Q108: -960.8740341 | R108: -937.4380821 | S108: -914.5737386 | T108: -892.2670621 | U108: -870.5044508 | V108: -849.2726349 | W108: -828.5586682 | X108: -808.3499202 | Y108: -788.6340685 | AA108: =SUM(H108:Z108) -> -17654.63726
G109: Dobanda compusa anual | I109: =I79/I$90 -> 35.12195122 | J109: 69.55859607 | K109: 103.3274851 | L109: 136.4457448 | M109: 168.9300882 | N109: 200.7968246 | O109: 232.0618697 | P109: 262.7407554 | Q109: 292.8486386 | R109: 322.400311 | S109: 351.4102076 | T109: 379.8924156 | U109: 407.8606829 | V109: 435.3284263 | W109: 462.3087396 | X109: 488.8144018 | Y109: 514.8578843 | Z109: 540.451359 | AA109: =SUM(H109:Z109) -> 5405.156382
G110: Depuneri rambursate | I110: =I80/I$90 -> 0 | J110: 0 | K110: 0 | L110: 0 | M110: 0 | N110: 0 | O110: 0 | P110: 0 | Q110: 0 | R110: 0 | S110: 0 | T110: 0 | U110: 0 | V110: 0 | W110: 0 | X110: 0 | Y110: 0 | Z110: 13849.18364 | AA110: 13849.18364
G111: Impozit | I111: =IF(I109>0,-$E$15*I$109,0) -> -3.512195122 | J111: -6.955859607 | K111: -10.33274851 | L111: -13.64457448 | M111: -16.89300882 | N111: -20.07968246 | O111: -23.20618697 | P111: -26.27407554 | Q111: -29.28486386 | R111: -32.2400311 | S111: -35.14102076 | T111: -37.98924156 | U111: -40.78606829 | V111: -43.53284263 | W111: -46.23087396 | X111: -48.88144018 | Y111: -51.48578843 | Z111: -54.0451359 | AA111: -540.5156382
G112: Comisioane bancare | I112: =H82/I$90 -> 0 | J112: 0 | K112: 0 | L112: 0 | M112: 0 | N112: 0 | O112: 0 | P112: 0 | Q112: 0 | R112: 0 | S112: 0 | T112: 0 | U112: 0 | V112: 0 | W112: 0 | X112: 0 | Y112: 0 | Z112: 0 | AA112: 0
G113: Total flux anual real | H113: =SUM(H108:H112) -> -1200 | I113: =SUM(I108:I112) -> -1139.121951 | J113: =SUM(J108:J112) -> -1079.574539 | K113: -1021.324557 | L113: -964.3396034 | M113: -908.5880658 | N113: -854.0390971 | O113: -800.6625993 | P113: -748.4292051 | Q113: -697.3102593 | R113: -647.2778021 | S113: -598.3045517 | T113: -550.363888 | U113: -503.4298362 | V113: -457.4770513 | W113: -412.4808026 | X113: -368.4169586 | Y113: -325.2619726 | Z113: 14335.58986 | AA113: 1059.187125
H136: 0 | I136: =H136+1 -> 1 | J136: =I136+1 -> 2 | K136: =J136+1 -> 3 | L136: 4 | M136: 5 | N136: 6 | O136: 7 | P136: 8 | Q136: 9 | R136: 10 | S136: 11 | T136: 12 | U136: 13 | V136: 14 | W136: 15 | X136: 16 | Y136: 17 | Z136: =Y136+1 -> 18
H137: =H108 -> -1200 | I137: -1170.731707 | J137: -1142.177275 | K137: -1114.319293 | L137: -1087.140774 | M137: -1060.625145 | N137: -1034.756239 | O137: -1009.518282 | P137: -984.895885 | Q137: -960.8740341 | R137: -937.4380821 | S137: -914.5737386 | T137: -892.2670621 | U137: -870.5044508 | V137: -849.2726349 | W137: -828.5586682 | X137: -808.3499202 | Y137: -788.6340685 | AA137: =SUM(H137:Z137) -> -17654.63726
I138: =SUM(I109:I112) -> 31.6097561 | J138: 62.60273647 | K138: 92.99473658 | L138: 122.8011703 | M138: 152.0370794 | N138: 180.7171421 | O138: 208.8556828 | P138: 236.4666799 | Q138: 263.5637748 | R138: 290.1602799 | S138: 316.2691869 | T138: 341.9031741 | U138: 367.0746146 | V138: 391.7955836 | W138: 416.0778656 | X138: 439.9329616 | Y138: 463.3720959 | Z138: 14335.58986 | AA138: =SUM(H138:Z138) -> 18713.82439
G139: PV Discount rate @ | H139: =1/(1+$E$13)^H136 -> 1 | I139: 0.9951456311 | J139: 0.990314827 | K139: 0.9855074735 | L139: 0.9807234566 | M139: 0.9759626632 | N139: 0.9712249803 | O139: 0.966510296 | P139: 0.9618184984 | Q139: 0.9571494766 | R139: 0.9525031199 | S139: 0.9478793183 | T139: 0.9432779624 | U139: 0.9386989432 | V139: 0.9341421522 | W139: 0.9296074816 | X139: 0.9250948239 | Y139: 0.9206040723 | Z139: 0.9161351205 | AA139: =AA137+AA138 -> 1059.187125
G141: PV Outflows | H141: =H139*H137 -> -1200 | I141: =I139*I137 -> -1165.048544 | J141: -1131.115091 | K141: -1098.169991 | L141: -1066.184457 | M141: -1035.130541 | N141: -1004.981108 | O141: -975.7098136 | P141: -947.2910812 | Q141: -919.7000788 | R141: -892.9126979 | S141: -866.9055319 | T141: -841.6558562 | U141: -817.141608 | V141: -793.341367 | W141: -770.2343369 | X141: -747.8003271 | Y141: -726.019735 | Z141: 0 | AA141: =SUM(H141:Z141) -> -16999.34217
G142: PV Inflows | H142: =H138*H139 -> 0 | I142: =I138*I139 -> 31.45631068 | J142: 61.99641814 | K142: 91.6470079 | L142: 120.4339883 | M142: 148.3825129 | N142: 175.5170028 | O142: 201.8611677 | P142: 227.4380269 | Q142: 252.2699291 | R142: 276.3785719 | S142: 299.7850213 | T142: 322.5097294 | U142: 344.5725528 | V142: 365.9927697 | W142: 386.7890968 | X142: 406.9797056 | Y142: 426.5822385 | Z142: 13133.33735 | AA142: =SUM(H142:Z142) -> 17273.9294
G144: NPV | H144: =H141+H142 -> -1200 | I144: =I141+I142 -> -1133.592233 | J144: -1069.118673 | K144: -1006.522983 | L144: -945.7504692 | M144: -886.7480284 | N144: -829.4641052 | O144: -773.8486459 | P144: -719.8530542 | Q144: -667.4301497 | R144: -616.534126 | S144: -567.1205106 | T144: -519.1461268 | U144: -472.5690552 | V144: -427.3485973 | W144: -383.4452401 | X144: -340.8206214 | Y144: -299.4374965 | Z144: 13133.33735 | AA144: =AA141+AA142 -> 274.5872325

Sheet Sheet2
A2: Simpla
A3: Compusa
H66: year | J66: 0 | K66: =J66+1 -> 1 | L66: =K66+1 -> 2 | M66: =L66+1 -> 3 | N66: =M66+1 -> 4 | O66: =N66+1 -> 5 | P66: =O66+1 -> 6 | Q66: 7 | R66: 8 | S66: 9 | T66: 10 | U66: 11 | V66: 12 | W66: 13 | X66: 14 | Y66: 15 | Z66: 16 | AA66: 17 | AB66: 18
H68: Inndex inflation | J68: 1 | K68: =J68*(1+$D$86) -> 1.025 | L68: =K68*(1+$D$86) -> 1.050625 | M68: =L68*(1+$D$86) -> 1.076890625 | N68: =M68*(1+$D$86) -> 1.103812891 | O68: =N68*(1+$D$86) -> 1.131408213 | P68: =O68*(1+$D$86) -> 1.159693418 | Q68: 1.188685754 | R68: 1.218402898 | S68: 1.24886297 | T68: 1.280084544 | U68: 1.312086658 | V68: 1.344888824 | W68: 1.378511045 | X68: 1.412973821 | Y68: 1.448298166 | Z68: 1.484505621 | AA68: 1.521618261 | AB68: 1.559658718
H71: Investment | J71: =-D81 -> -1200 | K71: =J71 -> -1200 | L71: =K71 -> -1200 | M71: -1200 | N71: -1200 | O71: -1200 | P71: -1200 | Q71: -1200 | R71: -1200 | S71: -1200 | T71: -1200 | U71: -1200 | V71: -1200 | W71: -1200 | X71: -1200 | Y71: -1200 | Z71: -1200 | AA71: -1200
C72: =D81+I83 -> 3260.438062
H73: CF nominal | AB73: =D81*D82*AB66 -> 648
H74: Prima | AB74: 10200
H75: Principal | AB75: =D81*AB66 -> 21600
H77: Total | J77: =SUM(J71:J76) -> -1200 | K77: -1200 | L77: -1200 | M77: -1200 | N77: -1200 | O77: -1200 | P77: -1200 | Q77: -1200 | R77: -1200 | S77: -1200 | T77: -1200 | U77: -1200 | V77: -1200 | W77: -1200 | X77: -1200 | Y77: -1200 | Z77: -1200 | AA77: -1200 | AB77: 32448
H79: Discount rate | J79: =1/(1+$D$85)^J66 -> 1 | K79: 0.9708737864 | L79: 0.9425959091 | M79: 0.9151416594 | N79: 0.8884870479 | O79: 0.8626087844 | P79: 0.8374842567 | Q79: 0.8130915113 | R79: 0.7894092343 | S79: 0.7664167323 | T79: 0.7440939149 | U79: 0.7224212766 | V79: 0.7013798802 | W79: 0.68095134 | X79: 0.6611178058 | Y79: 0.6418619474 | Z79: 0.6231669392 | AA79: 0.6050164458 | AB79: 0.5873946076
C81: Investment | D81: 1200 | H81: PV outflows | J81: =J77*J79 -> -1200
C82: Coupon | D82: 0.03 | H82: PV inflows | K82: =K77*K79 -> -1165.048544 | L82: =L77*L79 -> -1131.115091 | M82: =M77*M79 -> -1098.169991 | N82: =N77*N79 -> -1066.184457 | O82: =O77*O79 -> -1035.130541 | P82: =P77*P79 -> -1004.981108 | Q82: -975.7098136 | R82: -947.2910812 | S82: -919.7000788 | T82: -892.9126979 | U82: -866.9055319 | V82: -841.6558562 | W82: -817.141608 | X82: -793.341367 | Y82: -770.2343369 | Z82: -747.8003271 | AA82: -726.019735 | AB82: 19059.78023
C83: CF real | D83: =D82*D81 -> 36 | E83: per year | H83: NPV 1 | I83: =SUM(J81:AB81)+SUM(J82:AB82) -> 2060.438062
C85: Interest rate | D85: 0.03 | H85: NPV 2 | I85: =NPV($D$85,J77:AB77)*(1+$D$85) -> 2060.438062
C86: Inflation annual | D86: 0.025 | H86: IRR | I86: =IRR(J77:AB77) -> 0.04135273603
C87: Real rate | D87: =(1+$D$85)/(1+$D$86)-1 -> 0.00487804878
H88: year | J88: 0 | K88: =J88+1 -> 1 | L88: =K88+1 -> 2 | M88: =L88+1 -> 3 | N88: =M88+1 -> 4 | O88: =N88+1 -> 5
H90: Inndex inflation | J90: 1 | K90: 1 | L90: 1 | M90: 1 | N90: 1 | O90: 1
H93: Investment | J93: =-D81 -> -1200
H94: CF nominal | K94: =$D$83*K$90 -> 36 | L94: =$D$83*L$90 -> 36 | M94: =$D$83*M$90 -> 36 | N94: =$D$83*N$90 -> 36 | O94: =$D$83*O$90+D81 -> 1236
H96: Total | J96: =J93+J94 -> -1200 | K96: 36 | L96: 36 | M96: 36 | N96: 36 | O96: 1236
H98: Discount rate | J98: =1/(1+$D$87)^J88 -> 1 | K98: 0.9951456311 | L98: 0.990314827 | M98: 0.9855074735 | N98: 0.9807234566 | O98: 0.9759626632
H100: PV outflows | J100: =J96*J98 -> -1200
H101: PV inflows | K101: =K96*K98 -> 35.82524272 | L101: =L96*L98 -> 35.65133377 | M101: =M96*M98 -> 35.47826905 | N101: =N96*N98 -> 35.30604444 | O101: =O96*O98 -> 1206.289852
H102: NPV 1 | I102: =SUM(J100:O100)+SUM(J101:O101) -> 148.5507416
H104: NPV 2 | I104: =NPV($D$87,J96:O96)*(1+$D$87) -> 148.5507416
H105: IRR | I105: =IRR(J96:O96) -> 0.03
C107: La un depozit constitutit pe 1 an, cu o rata a dobanzii de 7%, un impozit 16% si o rata a inflatiei de 5%, randamentul real net va fi de numai 0,83%. Acesta este procentul cu care puterea de cumparare a banilor a sporit pe perioada detinerii depozitulu
E111: =G117/100 ->  | G111: =-#REF!*0.07 -> 
E112: 0.05
G113: =-#REF!*M119 -> 
G115: =G111*M117 -> 
G117: =(1-M117)*G111 ->  | I117: 7 | J117: dobanda nominala*impozit/100 | M117: 0.16
J119: ajustata la inflatie | M119: =(1+$E$111)/(1+$E$112)-1 -> 
